[Event "Israeli Open Championship 2019"]
[Site "Jerusalem"]
[Date "2019.12.18"]
[Round "6.8"]
[White "Birnboim, Nathan"]
[Black "Zak, Arad"]
[Result "1/2-1/2"]
[ECO "E63"]
[WhiteElo "2393"]
[BlackElo "2076"]
[Annotator "NA"]
[PlyCount "209"]
[EventDate "2019.12.12"]
[EventType "swiss"]
[EventCountry "ISR"]
[SourceTitle "playchess.com"]
[Source "ChessBase"]
[SourceQuality "1"]
[TimeControl "5400+30"]

1. d4 {[%emt 0:05:27]} Nf6 {[%emt 0:00:26]} 2. c4 {[%emt 0:00:06]} g6 {[%emt 0:00:05]} 3. Nc3 {[%emt 0:00:54]} Bg7 {[%emt 0:00:16]} 4. g3 {[%emt 0:01:07]} O-O {[%emt 0:01:08]} 5. Bg2 {[%emt 0:00:10]} d6 {[%emt 0:00:22]} 6. Nf3 {[%emt 0:00:06]} Nc6 {[%emt 0:00:10]} 7. O-O {[%emt 0:00:17]} a6 {[%emt 0:00:10]} 8. Bf4 {[%emt 0:02:39]} Nh5 {[%emt 0:10:05] E63: King's Indian: Fianchetto: Panno Variation with 7...a6} 9. Bg5 {[%emt 0:06:32]} h6 {[%emt 0:02:08]} 10. Bd2 {[%emt 0:21:16]} e5 $146 {[%emt 0:22:36]} ({Predecessor:} 10... f5 11. d5 Ne5 12. Nxe5 dxe5 13. e4 f4 14. Na4 Qd6 15. Rc1 Qf6 16. Rc3 {1-0 (39) Khalifman,A (2613)-Kuderinov,K (2465) Moscow 2015}) 11. d5 {[%emt 0:15:38]} Ne7 {[%emt 0:00:23]} 12. e4 {[%emt 0:41:48]} Bg4 {[%emt 0:11:34]} 13. h3 {[%emt 0:00:00]} Bd7 {[%emt 0:00:14]} 14. Nh4 {[%emt 0:00:00]} Qe8 {[%emt 0:02:53]} 15. Nf5 {[%emt 0:00:00]} Nxf5 {[%emt 0:16:37]} 16. exf5 {[%emt 0:00:00]} b5 {[%emt 0:02:55]} 17. fxg6 {[%emt 0:00:00]} fxg6 {[%emt 0:00:07]} 18. cxb5 {[%emt 0:00:00]} axb5 {[%emt 0:00:12]} 19. Ne4 {[%emt 0:00:00]} Nf6 {[%emt 0:01:02]} 20. Nxf6+ {[%emt 0:00:00]} Rxf6 {[%emt 0:00:14]} 21. Qc1 {[%emt 0:00:00]} Qc8 $1 {[%emt 0:02:57]} 22. Kh2 {[%emt 0:00:00]} Kh7 {[%emt 0:01:13]} 23. Be3 {[%emt 0:00:00]} Ra4 {[%emt 0:04:47]} 24. Qc2 {[%emt 0:02:23]} Bf5 {[%emt 0:01:42]} 25. Qe2 {[%emt 0:00:07]} Bd7 {[%emt 0:05:17]} 26. Rfc1 {[%emt 0:00:22]} Rf7 {[%emt 0:01:09]} 27. Qd2 {[%emt 0:01:05]} Rf5 {[%emt 0:00:43]} 28. b3 {[%emt 0:00:38]} Ra6 {[%emt 0:01:04]} 29. Rc2 {[%emt 0:00:45]} Rh5 {[%emt 0:00:30]} 30. h4 {[%emt 0:00:14]} Bf5 {[%emt 0:00:50]} 31. Rac1 {[%emt 0:00:33]} Bxc2 {[%emt 0:01:43]} 32. Qxc2 $16 {[%emt 0:00:04]} (32. Rxc2 $18 Rf5 33. Be4 (33. Bh3 c5 $11)) 32... Qa8 {[%emt 0:06:18]} 33. Qxc7 {[%emt 0:00:21]} Rxa2 {[%emt 0:04:40]} 34. Qxd6 {[%emt 0:00:17]} Qf8 {[%emt 0:00:00]} 35. Qxf8 {[%emt 0:00:35]} Bxf8 {[%emt 0:00:00]} 36. Rc7+ {[%emt 0:00:23]} Kg8 {[%emt 0:00:00]} 37. Rc6 {[%emt 0:01:02]} Rf5 {[%emt 0:01:02]} 38. Rxg6+ {[%emt 0:00:18]} Kf7 {[%emt 0:00:15]} 39. Rb6 {[%emt 0:00:13]} b4 {[%emt 0:00:43]} 40. Rb7+ {[%emt 0:00:06]} Ke8 {[%emt 0:00:30]} 41. Be4 {[%emt 0:01:12]} Rf6 {[%emt 0:00:56]} 42. Bd3 {[%emt 0:00:29]} Bd6 {[%emt 0:00:29]} 43. Kg2 {[%emt 0:00:37]} Rb2 {[%emt 0:00:23]} 44. Bc4 {[%emt 0:00:16]} Rf7 {[%emt 0:00:27]} 45. Rb6 {[%emt 0:00:24]} Rfxf2+ {[%emt 0:00:15]} 46. Kh3 {[%emt 0:00:16]} Rf6 {[%emt 0:00:29]} 47. Kg4 {[%emt 0:00:25]} Rg2 {[%emt 0:00:32]} 48. Kh3 {[%emt 0:00:34]} Ra2 {[%emt 0:00:20]} 49. Bc5 {[%emt 0:00:30]} Ke7 {[%emt 0:00:53]} 50. Rb7+ {[%emt 0:00:16]} Kd8 {[%emt 0:00:29]} 51. Be3 {[%emt 0:00:08]} e4 {[%emt 0:00:32]} 52. Rg7 {[%emt 0:00:40]} Rc2 {[%emt 0:00:42]} 53. Bd4 {[%emt 0:00:28]} Rf3 {[%emt 0:00:23]} 54. Bb5 {[%emt 0:00:05]} Kc8 {[%emt 0:00:36]} 55. Ba6+ {[%emt 0:00:26]} Kd8 {[%emt 0:00:23]} 56. Bb5 {[%emt 0:00:32]} Kc8 {[%emt 0:00:07]} 57. Bb6 {[%emt 0:00:17]} Rcc3 {[%emt 0:00:34]} 58. Ba6+ {[%emt 0:00:19]} Kb8 {[%emt 0:00:24]} 59. Rg8+ {[%emt 0:01:02]} Rf8 {[%emt 0:00:01]} 60. Rg6 {[%emt 0:00:11]} Rxg3+ {[%emt 0:00:16]} 61. Rxg3 {[%emt 0:00:07]} Bxg3 {[%emt 0:00:04]} 62. Kxg3 {[%emt 0:00:07]} Rf6 {[%emt 0:00:08]} 63. Bc5 {[%emt 0:00:12]} Rxa6 {[%emt 0:00:07]} 64. Bxb4 {[%emt 0:00:09]} Rb6 {[%emt 0:02:36]} 65. Be7 {[%emt 0:02:50]} Rxb3+ {[%emt 0:00:16]} 66. Kf4 {[%emt 0:00:13]} e3 {[%emt 0:00:15]} 67. Kf3 {[%emt 0:00:11]} Kc8 {[%emt 0:00:42]} 68. Bc5 {[%emt 0:00:32]} Kd7 {[%emt 0:01:03]} 69. h5 {[%emt 0:04:24]} e2+ {[%emt 0:00:29]} 70. Kxe2 {[%emt 0:00:02]} Rh3 {[%emt 0:00:06]} 71. Bf8 {[%emt 0:00:50]} Rxh5 {[%emt 0:00:12]} 72. Ke3 {[%emt 0:00:29]} Rh3+ {[%emt 0:00:08]} 73. Kf2 {[%emt 0:00:17]} Rh5 {[%emt 0:00:14]} 74. Kg3 {[%emt 0:00:13]} Rh1 {[%emt 0:00:16]} 75. d6 {[%emt 0:00:12]} h5 {[%emt 0:00:45]} 76. Be7 {[%emt 0:00:13]} Ke6 {[%emt 0:00:13]} 77. Kg2 {[%emt 0:01:25]} Rb1 {[%emt 0:00:11]} 78. Kh3 {[%emt 0:00:09]} Rb4 {[%emt 0:00:38]} 79. Kg3 {[%emt 0:00:32]} Rd4 {[%emt 0:00:15]} 80. Kh3 {[%emt 0:00:18]} Kf5 {[%emt 0:00:27]} 81. Kg3 {[%emt 0:00:13]} Rg4+ {[%emt 0:00:37]} 82. Kh3 {[%emt 0:00:15]} Ke6 {[%emt 0:00:09]} 83. Kh2 {[%emt 0:00:16]} Kf7 {[%emt 0:00:43]} 84. Kh3 {[%emt 0:00:09]} Rd4 {[%emt 0:00:16]} 85. Kg3 {[%emt 0:00:09]} Kg6 {[%emt 0:00:27]} 86. Kh3 {[%emt 0:00:14]} Kf5 {[%emt 0:00:23]} 87. Kg3 {[%emt 0:00:10]} h4+ {[%emt 0:02:00]} 88. Kh3 {[%emt 0:00:28]} Kg6 {[%emt 0:00:48]} 89. Bxh4 {[%emt 0:00:45]} Rxd6 {[%emt 0:00:09]} 90. Bg3 {[%emt 0:00:43]} Rd3 {[%emt 0:00:06]} 91. Kg2 {[%emt 0:01:15]} Kf5 {[%emt 0:00:08]} 92. Bf2 {[%emt 0:00:21]} Kg4 {[%emt 0:00:12]} 93. Bg1 {[%emt 0:00:46]} Rd2+ {[%emt 0:00:06]} 94. Kh1 {[%emt 0:00:25]} Kg3 {[%emt 0:00:35]} 95. Bb6 {[%emt 0:00:57]} Rd7 {[%emt 0:00:36]} 96. Bc5 {[%emt 0:00:40]} Rd2 {[%emt 0:00:30]} 97. Bb6 {[%emt 0:00:45]} Rc2 {[%emt 0:01:10]} 98. Bg1 {[%emt 0:00:20]} Kh3 {[%emt 0:00:49]} 99. Bd4 {[%emt 0:00:30]} Rc4 {[%emt 0:00:48]} 100. Ba7 {[%emt 0:00:16]} Kg3 {[%emt 0:00:47]} 101. Bb8+ {[%emt 0:00:31]} Kf2 {[%emt 0:00:15]} 102. Ba7+ {[%emt 0:00:14]} Kf1 {[%emt 0:00:11]} 103. Bg1 {[%emt 0:00:44]} Rc7 {[%emt 0:00:28]} 104. Bh2 {[%emt 0:00:11]} Kf2 {[%emt 0:00:48]} 105. Bxc7 {[%emt 0:03:15]} 1/2-1/2

[Event "Israeli Open Championship 2019"]
[Site "Jerusalem"]
[Date "2019.12.18"]
[Round "6.9"]
[White "Tifferet, Shaked"]
[Black "Nissim, Yonatan"]
[Result "1-0"]
[ECO "B38"]
[WhiteElo "2232"]
[BlackElo "2040"]
[Annotator "NA"]
[PlyCount "91"]
[EventDate "2019.12.12"]
[EventType "swiss"]
[EventCountry "ISR"]
[SourceTitle "playchess.com"]
[Source "ChessBase"]
[SourceQuality "1"]
[TimeControl "5400+30"]

1. e4 {[%emt 0:00:00]} c5 {[%emt 0:00:00]} 2. Nf3 {[%emt 0:00:00]} g6 {[%emt 0:00:00]} 3. c4 {[%emt 0:00:00]} Bg7 {[%emt 0:00:19]} 4. d4 {[%emt 0:00:00]} cxd4 {[%emt 0:00:06]} 5. Nxd4 {[%emt 0:00:00]} Nc6 {[%emt 0:00:04]} 6. Be3 {[%emt 0:00:03]} Nf6 {[%emt 0:00:13]} 7. Nc3 {[%emt 0:00:05]} O-O {[%emt 0:00:17]} 8. Be2 {[%emt 0:00:05]} b6 {[%emt 0:00:12]} 9. O-O {[%emt 0:05:41]} Bb7 {[%emt 0:00:23]} 10. Nxc6 {[%emt 0:03:15]} Bxc6 {[%emt 0:00:35] B38: Sicilian: Maroczy Bind with 5...Bg7 and 7...0-0} 11. Qd3 {[%emt 0:02:24]} (11. f3 e6 12. Qd6 Ne8 13. Qd2 f5 14. Rad1 Qe7 15. exf5 gxf5 16. a3 Rf7 17. b4 Qf6 18. Rc1 {0-1 (26) Votava,J (2534)-Kislinsky,A (2552) Czechia 2012}) 11... d6 {[%emt 0:02:51]} 12. Bd4 {[%emt 0:06:35]} a5 $146 {[%emt 0:14:25]} ({Predecessor:} 12... Re8 13. b4 e6 14. a4 a5 15. Rab1 Rb8 16. Rfd1 Qe7 17. f3 Red8 18. bxa5 bxa5 19. Rxb8 Rxb8 {1-0 (26) Kulkarni,V (2278)-Shyam,N (2415) Mumbai 2016}) 13. f4 {[%emt 0:02:01]} Nd7 {[%emt 0:01:35]} 14. Bxg7 {[%emt 0:01:02]} Kxg7 {[%emt 0:00:04]} 15. Rad1 {[%emt 0:08:29]} Qc7 {[%emt 0:04:07]} 16. Qd4+ {[%emt 0:03:10]} f6 {[%emt 0:02:38]} 17. Kh1 {[%emt 0:04:57]} Nc5 {[%emt 0:03:21]} 18. Nd5 {[%emt 0:03:51]} Qd8 {[%emt 0:12:54]} 19. e5 {[%emt 0:08:26]} dxe5 {[%emt 0:22:34]} 20. fxe5 {[%emt 0:00:06]} f5 {[%emt 0:02:24]} 21. Qe3 {[%emt 0:14:58]} Bxd5 {[%emt 0:05:49]} 22. cxd5 {[%emt 0:00:17]} Ra7 {[%emt 0:02:42]} 23. Bb5 {[%emt 0:01:57]} Qb8 {[%emt 0:02:31]} 24. d6 {[%emt 0:06:01]} e6 {[%emt 0:00:47]} 25. d7 {[%emt 0:00:23]} Ne4 {[%emt 0:09:03]} 26. Bc6 {[%emt 0:06:54]} Rd8 {[%emt 0:01:25]} 27. Qa3 {[%emt 0:07:55]} Nc5 {[%emt 0:05:51]} 28. Rd6 {[%emt 0:00:05]} Rc7 {[%emt 0:03:17]} 29. Rfd1 {[%emt 0:05:10]} Kf7 {[%emt 0:01:11]} 30. Qh3 {[%emt 0:00:17]} Kg8 {[%emt 0:01:35]} 31. Qh4 {[%emt 0:00:19]} Ne4 {[%emt 0:01:26]} 32. Bxe4 $18 {[%emt 0:00:29]} Rc4 {[%emt 0:00:37]} 33. Rxe6 {[%emt 0:03:31]} Rxd7 {[%emt 0:00:10]} 34. Re8+ {[%emt 0:00:20]} Qxe8 {[%emt 0:00:34]} 35. Bd5+ {[%emt 0:00:05]} Kg7 {[%emt 0:00:31]} 36. Qxc4 {[%emt 0:00:10]} Qxe5 {[%emt 0:00:41]} 37. Qc3 {[%emt 0:00:26]} Kf6 {[%emt 0:00:22]} 38. Qxe5+ {[%emt 0:00:08]} Kxe5 {[%emt 0:00:02]} 39. Bb3 {[%emt 0:00:08]} Rc7 {[%emt 0:00:28]} 40. Kg1 {[%emt 0:00:08]} g5 {[%emt 0:00:37]} 41. Kf2 {[%emt 0:00:18]} h5 {[%emt 0:00:33]} 42. Rd5+ {[%emt 0:00:33]} Ke4 {[%emt 0:00:34]} 43. Rb5 {[%emt 0:00:09]} Rd7 {[%emt 0:00:58]} 44. Ke2 {[%emt 0:00:06]} f4 {[%emt 0:00:16]} 45. Rxg5 {[%emt 0:00:14]} Rd2+ {[%emt 0:00:19]} 46. Kxd2 {[%emt 0:11:49] Kd5} 1-0

[Event "Israeli Open Championship 2019"]
[Site "Jerusalem"]
[Date "2019.12.18"]
[Round "6.10"]
[White "Zalkind, Konstantin"]
[Black "Uritsky, Yonathan"]
[Result "0-1"]
[ECO "B25"]
[WhiteElo "2162"]
[BlackElo "1881"]
[Annotator "NA"]
[PlyCount "95"]
[EventDate "2019.12.12"]
[EventType "swiss"]
[EventCountry "ISR"]
[SourceTitle "playchess.com"]
[Source "ChessBase"]
[SourceQuality "1"]
[TimeControl "5400+30"]

1. e4 {[%emt 0:00:00]} c5 {[%emt 0:00:00]} 2. g3 {[%emt 0:00:09]} Nc6 {[%emt 0:00:01]} 3. Bg2 {[%emt 0:00:13]} g6 {[%emt 0:00:12]} 4. Nc3 {[%emt 0:00:46]} Bg7 {[%emt 0:00:11]} 5. Nge2 {[%emt 0:00:24]} Rb8 {[%emt 0:00:14]} 6. d3 {[%emt 0:01:24]} b5 {[%emt 0:00:29]} 7. a3 {[%emt 0:03:57]} d6 {[%emt 0:01:52]} 8. O-O {[%emt 0:00:30]} e6 {[%emt 0:01:21] B25: Closed Sicilian: 3 g3, lines without early Be3} 9. Be3 {[%emt 0:01:11]} b4 {[%emt 0:10:57]} 10. Na4 $146 {[%emt 0:03:32]} ({Predecessor:} 10. axb4 cxb4 11. Na4 Nge7 12. Qd2 O-O 13. Bh6 Bxh6 14. Qxh6 a5 15. b3 Kh8 16. Ra2 {0-1 (60) Short,N (2683)-Nakamura,H (2786) London 2013}) 10... Nge7 {[%emt 0:12:36]} 11. Qd2 {[%emt 0:04:39]} h5 {[%emt 0:05:46]} 12. d4 {[%emt 0:03:37]} cxd4 {[%emt 0:00:48]} 13. Nxd4 {[%emt 0:00:22]} bxa3 {[%emt 0:03:20]} 14. Rxa3 {[%emt 0:04:42]} Ne5 {[%emt 0:01:01]} 15. b3 {[%emt 0:02:48]} d5 {[%emt 0:18:50]} 16. Nc3 {[%emt 0:08:07]} Bb7 {[%emt 0:08:55]} 17. Rxa7 {[%emt 0:05:40]} Ng4 {[%emt 0:05:20]} 18. exd5 {[%emt 0:04:45]} Nxe3 {[%emt 0:04:11]} 19. fxe3 {[%emt 0:07:40]} exd5 {[%emt 0:00:53]} 20. Nce2 {[%emt 0:07:26]} O-O {[%emt 0:00:48]} 21. Nf4 {[%emt 0:04:57]} Qb6 {[%emt 0:01:42]} 22. Ra3 {[%emt 0:04:49]} Rbc8 {[%emt 0:00:57]} 23. c3 {[%emt 0:00:43]} Rfe8 {[%emt 0:01:14]} 24. b4 {[%emt 0:01:16]} Rcd8 {[%emt 0:01:11]} 25. Qd3 {[%emt 0:01:00]} Nc8 {[%emt 0:00:31]} 26. Re1 {[%emt 0:02:41]} Re5 {[%emt 0:00:56]} 27. Qb5 {[%emt 0:01:54]} Qc7 {[%emt 0:01:01] Remove Defender [#]} 28. Nd3 $1 {[%emt 0:01:06]} Re7 {[%emt 0:01:33]} 29. Nc5 {[%emt 0:04:30]} Nd6 {[%emt 0:00:48]} 30. Qd3 {[%emt 0:04:39]} (30. Qa5 $16) 30... Bh6 $2 {[%emt 0:01:56]} ({Better is} 30... Ra8 $14 31. Raa1 Ree8) 31. Ra2 $14 {[%emt 0:01:43]} (31. Ra7 $18) 31... Rde8 {[%emt 0:02:07]} 32. Rae2 {[%emt 0:00:20]} Ba8 {[%emt 0:00:28]} 33. Bf3 {[%emt 0:00:33]} Nc4 {[%emt 0:00:57]} 34. Kh1 {[%emt 0:04:44]} Rxe3 {[%emt 0:01:14]} 35. Rxe3 {[%emt 0:00:11]} Rxe3 {[%emt 0:00:19]} 36. Rxe3 {[%emt 0:00:12]} Bxe3 {[%emt 0:00:16]} 37. Qe2 {[%emt 0:02:00]} Qa7 {[%emt 0:01:43]} 38. Kg2 {[%emt 0:01:14]} Qa1 {[%emt 0:00:52]} 39. Nc2 {[%emt 0:00:54]} Qxc3 {[%emt 0:00:30]} 40. Nxe3 {[%emt 0:00:43]} Nxe3+ {[%emt 0:02:52]} 41. Kf2 {[%emt 0:00:02]} Nc2 {[%emt 0:01:30]} 42. Nd3 {[%emt 0:00:56]} Qd4+ {[%emt 0:00:24]} 43. Kf1 {[%emt 0:00:43]} Ne3+ {[%emt 0:00:43]} 44. Ke1 {[%emt 0:00:20]} Bc6 {[%emt 0:00:19]} 45. Qd2 {[%emt 0:01:16]} Nc4 {[%emt 0:00:22]} 46. Qe2 {[%emt 0:00:30]} Bb5 {[%emt 0:00:30]} 47. Bg2 {[%emt 0:00:49]} Ne3 {[%emt 0:00:32]} 48. Qd1 {[%emt 0:07:23]} 0-1

[Event "Israeli Open Championship 2019"]
[Site "Jerusalem"]
[Date "2019.12.18"]
[Round "6.11"]
[White "Tsirilman, Guy"]
[Black "Golberg, Igor"]
[Result "1/2-1/2"]
[ECO "C07"]
[WhiteElo "1975"]
[BlackElo "2156"]
[Annotator "ChessBase"]
[PlyCount "74"]
[EventDate "2019.12.12"]
[EventType "swiss"]
[EventCountry "ISR"]
[SourceTitle "playchess.com"]
[Source "ChessBase"]
[SourceQuality "1"]
[TimeControl "5400+30"]

1. e4 {[%emt 0:00:00]} e6 {[%emt 0:00:00]} 2. d4 {[%emt 0:00:39]} d5 {[%emt 0:00:00]} 3. Nd2 {[%emt 0:00:42]} c5 {[%emt 0:00:00]} 4. Ngf3 {[%emt 0:00:56]} cxd4 {[%emt 0:00:00]} 5. exd5 {[%emt 0:00:21]} Qxd5 {[%emt 0:00:00]} 6. Bc4 {[%emt 0:00:52]} Qd7 {[%emt 0:00:04]} 7. O-O {[%emt 0:01:21]} Nc6 {[%emt 0:00:08]} 8. Nb3 {[%emt 0:01:53]} a6 {[%emt 0:00:14]} 9. Nfxd4 {[%emt 0:08:25]} Nxd4 {[%emt 0:00:06]} 10. Qxd4 {[%emt 0:02:32]} Qxd4 {[%emt 0:00:11]} 11. Nxd4 {[%emt 0:00:09]} Nf6 {[%emt 0:00:17]} 12. Bf4 {[%emt 0:11:35]} Bc5 {[%emt 0:03:22]} 13. Nb3 {[%emt 0:01:28]} Be7 {[%emt 0:00:12]} 14. Be2 {[%emt 0:02:27]} Nd5 {[%emt 0:00:25]} 15. Bd2 {[%emt 0:03:02]} O-O {[%emt 0:03:43]} 16. c4 {[%emt 0:03:07]} Nb4 {[%emt 0:00:13]} 17. Bxb4 {[%emt 0:07:31]} Bxb4 {[%emt 0:00:03]} 18. c5 {[%emt 0:00:35]} b6 {[%emt 0:00:33]} 19. cxb6 {[%emt 0:01:10]} Rb8 {[%emt 0:00:27]} 20. a3 {[%emt 0:00:46]} Be7 {[%emt 0:00:20]} 21. Na5 {[%emt 0:00:43]} Rxb6 {[%emt 0:00:10]} 22. b4 {[%emt 0:00:11]} e5 {[%emt 0:05:43]} 23. Bf3 {[%emt 0:10:36]} Be6 {[%emt 0:01:09]} 24. Rfe1 {[%emt 0:02:36]} Bf6 {[%emt 0:05:31]} 25. Rac1 {[%emt 0:02:41]} g6 {[%emt 0:06:21]} 26. g3 {[%emt 0:03:38]} Rd8 {[%emt 0:03:08]} 27. Rc6 {[%emt 0:07:18]} Rxc6 {[%emt 0:01:58]} 28. Nxc6 {[%emt 0:00:30]} Rd3 {[%emt 0:00:11]} 29. Re3 {[%emt 0:00:11]} Rd2 {[%emt 0:04:23]} 30. h4 {[%emt 0:04:48]} Ra2 {[%emt 0:00:06]} 31. Nb8 {[%emt 0:09:05]} e4 {[%emt 0:07:39]} 32. Bxe4 {[%emt 0:03:05]} Bd4 {[%emt 0:00:23]} 33. Rf3 {[%emt 0:01:27]} Bg4 {[%emt 0:00:41]} 34. Rf4 {[%emt 0:00:50]} Be5 {[%emt 0:00:27]} 35. Rxg4 {[%emt 0:00:45]} Bxb8 {[%emt 0:00:06]} 36. Rg5 {[%emt 0:02:36]} Rxa3 {[%emt 0:04:46]} 37. Ra5 {[%emt 0:00:10]} Ba7 {[%emt 0:55:30]} 1/2-1/2

[Event "Israeli Open Championship 2019"]
[Site "Jerusalem"]
[Date "2019.12.18"]
[Round "6.12"]
[White "Leor, Ephraim"]
[Black "Tsyn, Igor"]
[Result "0-1"]
[ECO "D77"]
[WhiteElo "1704"]
[BlackElo "2154"]
[Annotator "NA"]
[PlyCount "74"]
[EventDate "2019.12.12"]
[EventType "swiss"]
[EventCountry "ISR"]
[SourceTitle "playchess.com"]
[Source "ChessBase"]
[SourceQuality "1"]
[TimeControl "5400+30"]

1. Nf3 {[%emt 0:00:00]} Nf6 {[%emt 0:00:00]} 2. c4 {[%emt 0:00:00]} g6 {[%emt 0:00:00]} 3. g3 {[%emt 0:00:00]} Bg7 {[%emt 0:00:00]} 4. Bg2 {[%emt 0:00:00]} O-O {[%emt 0:00:00]} 5. O-O {[%emt 0:00:07]} d5 {[%emt 0:00:08]} 6. d4 {[%emt 0:01:12]} dxc4 {[%emt 0:00:07]} 7. Nc3 {[%emt 0:00:41]} Nbd7 {[%emt 0:11:59]} 8. e4 {[%emt 0:04:36] D77: Fianchetto Grünfeld: 6 0-0: Replies other than 6...c6} c6 {[%emt 0:02:56]} 9. Qe2 {[%emt 0:08:57]} Nb6 {[%emt 0:11:52]} 10. a4 {[%emt 0:05:23]} a5 {[%emt 0:00:22]} 11. h3 {[%emt 0:00:42]} Nfd7 {[%emt 0:11:03]} (11... e5 12. dxe5 Nfd7 13. Rd1 Qc7 14. Be3 Re8 15. Qd2 Bf8 16. Bf4 Nc5 17. e6 Qe7 18. exf7+ Qxf7 {1-0 (32) Wang,H (2690)-Li,D (2485) China 2017}) 12. e5 $146 {[%emt 0:08:02]} ({Predecessor:} 12. Bg5 h6 13. Be3 e6 14. Rfd1 Qe7 15. Ne5 Qb4 16. f4 Rd8 17. h4 Nf6 {1-0 (29) Von Meijenfeldt,B (2265)-Van Foreest,L (2350) Douglas 2016}) 12... Nb8 {[%emt 0:01:27]} 13. g4 {[%emt 0:09:43]} Na6 {[%emt 0:11:48]} 14. Na2 {[%emt 0:14:16]} Nc7 {[%emt 0:05:22]} 15. Nc3 {[%emt 0:04:11]} Ncd5 {[%emt 0:05:22]} 16. Ne4 {[%emt 0:04:43]} Nc7 {[%emt 0:14:36]} 17. Be3 {[%emt 0:07:53]} Ne6 {[%emt 0:01:28]} 18. Rfd1 {[%emt 0:03:14]} Nd5 {[%emt 0:01:28]} 19. Qxc4 {[%emt 0:02:04]} Nef4 {[%emt 0:00:23]} 20. Bxf4 {[%emt 0:04:04]} Nxf4 {[%emt 0:00:03]} 21. Bf1 {[%emt 0:00:23]} h5 {[%emt 0:07:03]} 22. Qc1 {[%emt 0:04:23] [#]} Nxh3+ $1 {[%emt 0:02:25]} 23. Bxh3 {[%emt 0:00:11]} hxg4 {[%emt 0:00:00]} 24. Bg2 {[%emt 0:00:57]} gxf3 {[%emt 0:00:12]} 25. Bxf3 {[%emt 0:00:07]} Qd7 {[%emt 0:02:11]} 26. Qf4 $17 {[%emt 0:04:16]} Qf5 {[%emt 0:01:42]} 27. Qg3 {[%emt 0:01:08]} Bh6 {[%emt 0:01:03]} 28. Kg2 {[%emt 0:03:20]} Bf4 {[%emt 0:02:55]} 29. Qh4 {[%emt 0:01:08]} g5 {[%emt 0:00:05]} 30. Nxg5 {[%emt 0:04:14]} Qxg5+ {[%emt 0:01:10]} 31. Qxg5+ {[%emt 0:00:08]} Bxg5 {[%emt 0:00:00]} 32. Rh1 {[%emt 0:00:41]} Bf5 {[%emt 0:02:08]} 33. Rh5 {[%emt 0:00:40]} f6 {[%emt 0:00:07]} 34. e6 {[%emt 0:01:51]} Rad8 {[%emt 0:00:31]} 35. Rah1 {[%emt 0:00:43]} Kg7 {[%emt 0:00:22]} 36. d5 {[%emt 0:01:28]} cxd5 {[%emt 0:01:16]} 37. Be2 {[%emt 0:01:05]} Rh8 {[%emt 0:01:36]} 0-1

[Event "Israeli Open Championship 2019"]
[Site "Jerusalem"]
[Date "2019.12.18"]
[Round "6.13"]
[White "Sokolovsky, Yahli"]
[Black "Kunin, Michael"]
[Result "0-1"]
[ECO "B41"]
[WhiteElo "2045"]
[BlackElo "2102"]
[Annotator "NA"]
[PlyCount "122"]
[EventDate "2019.12.12"]
[EventType "swiss"]
[EventCountry "ISR"]
[SourceTitle "playchess.com"]
[Source "ChessBase"]
[SourceQuality "1"]
[TimeControl "5400+30"]

1. e4 {[%emt 0:00:00]} c5 {[%emt 0:10:05]} 2. Nf3 {[%emt 0:00:00]} e6 {[%emt 0:00:05]} 3. d4 {[%emt 0:00:00]} cxd4 {[%emt 0:00:02]} 4. Nxd4 {[%emt 0:00:00]} a6 {[%emt 0:00:03]} 5. Be2 {[%emt 0:00:10]} b5 {[%emt 0:00:09]} 6. a4 {[%emt 0:01:29] B41: Sicilian: Kan Variation: 5 c4} (6. O-O Bb7 7. c4 b4 8. Qd3 Ne7 9. Be3 Ng6 10. Nd2 Qc7 11. Rac1 Nf4 12. Bxf4 Qxf4 13. c5 Nc6 14. Nxc6 Bxc6 {½-½ (30) Tomczak,J (2583)-Balogh,C (2634) Germany 2018}) 6... b4 {[%emt 0:00:16]} 7. O-O {[%emt 0:00:13]} Bb7 {[%emt 0:00:25]} 8. Nd2 {[%emt 0:00:48]} d6 {[%emt 0:01:09]} 9. Re1 $146 {[%emt 0:15:17]} ({Predecessor:} 9. b3 a5 10. Bb2 Nf6 11. Bd3 Be7 12. c3 bxc3 13. Bxc3 O-O {0-1 (54) Okruzhnova,A (1456)-Zubkovskaya,E (1386) Minsk 2018}) 9... Nf6 {[%emt 0:03:19]} 10. Bf3 {[%emt 0:01:18]} Nbd7 {[%emt 0:01:57]} 11. c3 {[%emt 0:24:27]} bxc3 {[%emt 0:01:22]} 12. bxc3 {[%emt 0:00:09]} Ne5 {[%emt 0:00:47]} 13. Be2 {[%emt 0:06:21]} Qc7 {[%emt 0:04:14]} 14. Qc2 {[%emt 0:03:49]} Be7 {[%emt 0:02:54]} 15. f4 {[%emt 0:04:05]} Ned7 {[%emt 0:00:31]} 16. Bf3 {[%emt 0:02:37]} Rc8 {[%emt 0:05:20]} 17. Rb1 $15 {[%emt 0:06:26]} Ba8 {[%emt 0:01:17]} 18. Ne2 {[%emt 0:10:52]} h6 {[%emt 0:07:36]} 19. f5 {[%emt 0:06:47]} e5 {[%emt 0:04:37]} 20. Ba3 {[%emt 0:02:27]} O-O {[%emt 0:06:34]} 21. Kh1 {[%emt 0:01:08]} Rfe8 {[%emt 0:00:40]} 22. c4 {[%emt 0:03:07]} d5 {[%emt 0:08:26]} 23. Bxe7 {[%emt 0:00:14]} Rxe7 {[%emt 0:00:05]} 24. exd5 {[%emt 0:05:00]} e4 {[%emt 0:23:35]} 25. Nxe4 {[%emt 0:01:20]} Nxd5 {[%emt 0:00:56]} 26. N2g3 {[%emt 0:02:04]} Ne5 {[%emt 0:02:57]} 27. f6 {[%emt 0:00:23]} Nxf3 {[%emt 0:02:14]} 28. fxe7 {[%emt 0:00:42]} Nxe1 {[%emt 0:00:22]} 29. Rxe1 {[%emt 0:00:21]} Nxe7 {[%emt 0:00:24]} 30. c5 {[%emt 0:01:01]} Ng6 {[%emt 0:00:44]} 31. Qf2 {[%emt 0:02:03]} Nf4 {[%emt 0:01:08]} 32. Rf1 {[%emt 0:00:22]} Ne6 {[%emt 0:01:03]} 33. Nd6 {[%emt 0:00:52]} Rf8 {[%emt 0:00:13]} 34. Ngf5 {[%emt 0:00:31]} Qxc5 {[%emt 0:01:38]} 35. Qg3 {[%emt 0:00:17]} Kh7 {[%emt 0:01:49]} 36. Re1 {[%emt 0:00:32]} g6 {[%emt 0:01:05]} 37. Nh4 {[%emt 0:00:23]} Qg5 {[%emt 0:00:50]} 38. Re5 {[%emt 0:00:52]} Qxg3 {[%emt 0:00:40]} 39. hxg3 {[%emt 0:00:01]} Kg7 {[%emt 0:01:41]} 40. Ra5 {[%emt 0:00:22]} Nc7 {[%emt 0:01:50]} 41. Rc5 {[%emt 0:01:02]} Nd5 {[%emt 0:00:21]} 42. Nf3 {[%emt 0:00:26]} Rb8 {[%emt 0:01:15]} 43. Ne5 {[%emt 0:00:21]} Rb1+ {[%emt 0:00:51]} 44. Kh2 {[%emt 0:00:01]} Ne3 {[%emt 0:00:43]} 45. Ndc4 {[%emt 0:01:17]} Nxg2 {[%emt 0:01:10]} 46. Rc7 {[%emt 0:00:29]} Ne3 {[%emt 0:01:13]} 47. g4 {[%emt 0:00:01]} Nf1+ {[%emt 0:00:45]} 48. Kg1 {[%emt 0:00:17]} Ne3+ {[%emt 0:00:34]} 49. Kf2 {[%emt 0:00:17]} Nxc4 {[%emt 0:00:06]} 50. Rxc4 {[%emt 0:00:13]} Kf6 {[%emt 0:00:30]} 51. Nf3 {[%emt 0:01:38]} Rb2+ {[%emt 0:00:22]} 52. Ke1 {[%emt 0:00:28]} Bxf3 {[%emt 0:00:37]} 53. Rf4+ {[%emt 0:00:01]} Kg5 {[%emt 0:00:20]} 54. Rxf3 {[%emt 0:00:01]} f6 {[%emt 0:00:17]} 55. Rc3 {[%emt 0:00:18]} Rb4 {[%emt 0:00:18]} 56. Rc5+ {[%emt 0:00:32]} Kxg4 {[%emt 0:00:10]} 57. a5 {[%emt 0:00:12]} Ra4 {[%emt 0:00:14]} 58. Kd2 {[%emt 0:00:01]} h5 {[%emt 0:00:28]} 59. Kc3 {[%emt 0:00:02]} h4 {[%emt 0:00:33]} 60. Kb3 {[%emt 0:00:01]} Rf4 {[%emt 0:00:46]} 61. Rc6 {[%emt 0:00:04]} h3 {[%emt 0:00:13]} 0-1